Cogmind - Beta 15 *** ADVENTURER MODE // 2025.07.13 @ 20:10:05 Player: Alex Result: Destroyed by G-47 Trooper with Particle Gun Performance ------------- Evolutions (2) 1000 Regions Visited (5) 1000 Robots Destroyed (49) 245 Value Destroyed (1255) 1255 Prototype IDs (0) 0 Alien Tech Used (0) 0 Bonus (33) 33 TOTAL SCORE: 3533 Bonus ------- Follower Combat Kills 33 Cogmind --------- Core Integrity 0/550 Matter 62/300 Energy 100/100 System Corruption 5% Temperature Cool (9) Movement Core (1400) Ox27 Location -8/Materials Parts ------- > --- POWER (2) -------- (None) > --- PROPULSION (3) --- (None) > --- UTILITY (3) ------ Huge Storage Unit > --- WEAPON (3) ------- Grenade Launcher Mini Grenade Launcher > --- INVENTORY (25) --- Reinforced Deuterium Engine Fission Core Light Fission Core Carbon-fiber Leg Heat Sink Disposable Heat Sink Humpback Advanced Visual Processing Unit Core Shielding Hardened Light Armor Plating Grenade Launcher Improved Datajack Mining Laser Peak State ------------ > --- POWER ------------ Light Nuclear Core Light Nuclear Core > --- PROPULSION ------- Wheel Wheel Airjet > --- UTILITY ---------- Cooling System Huge Storage Unit Hardened Light Armor Plating > --- WEAPON ----------- Ion Cannon Heavy Assault Rifle Mini Grenade Launcher > --- INVENTORY -------- Light Nuclear Core Light Nuclear Core Reinforced Deuterium Engine Fission Core Light Fission Core Carbon-fiber Leg Wheel Heat Sink Disposable Heat Sink Humpback Core Shielding Hardened Light Armor Plating Particle Cannon Heavy Assault Rifle Heavy Assault Rifle Grenade Launcher Grenade Launcher Mini Grenade Launcher Improved Datajack Mining Laser [Rating: 27] Favorites ----------- Power Light Nuclear Core Engine Ion Engine Power Core Light Nuclear Core Propulsion Wheel Leg Aluminum Leg Wheel Wheel Hover Unit Airjet Utility Huge Storage Unit Device Heat Sink Storage Huge Storage Unit Processor Visual Processing Unit Protection Hardened Light Armor Plating Weapon Particle Cannon Energy Gun Small Laser Energy Cannon Particle Cannon Ballistic Gun Light Assault Rifle Launcher Grenade Launcher Build | -11 -10 -10 -10 -9 -8 ------- Run | Yrd Mat Min Exi Min Mat Slots Evolved 4 | . . . . . 4 Power 1 | . . . . . 1 Propulsion 1 | . . . . . 1 Utility 1 | . . . . . 1 Weapon 1 | . . . . . 1 Parts Attached 34 | 11 7 2 1 2 11 Power 5 | 1 1 . . . 3 Engine 1 | 1 . . . . . Core 4 | . 1 . . . 3 Reactor . | . . . . . . Propulsion 10 | 6 3 . . . 1 Treads . | . . . . . . Leg 2 | 2 . . . . . Wheel 7 | 4 3 . . . . Hover 1 | . . . . . 1 Flight . | . . . . . . Utility 8 | 2 2 1 1 1 1 Device 2 | . 1 . . 1 . Storage 4 | 2 . 1 1 . . Processor 1 | . 1 . . . . Hackware . | . . . . . . Protection 1 | . . . . . 1 Artifact . | . . . . . . Weapon 11 | 2 1 1 . 1 6 Energy Gun 1 | 1 . . . . . Energy Cannon 2 | . 1 . . . 1 Ballistic Gun 4 | 1 . . . . 3 Ballistic Cannon . | . . . . . . Launcher 4 | . . 1 . 1 2 Special Weapon . | . . . . . . Impact Weapon . | . . . . . . Slashing Weapon . | . . . . . . Piercing Weapon . | . . . . . . Special Melee Weapon . | . . . . . . Unidentified Prototypes . | . . . . . . Parts Lost 17 | . 1 . . . 16 Power 4 | . . . . . 4 Propulsion 6 | . 1 . . . 5 Utility 1 | . . . . . 1 Weapon 6 | . . . . . 6 Highest Loss Streak 12 | . 1 . . . 12 To Critical Strikes . | . . . . . . Average Backups 10 | 1 3 4 7 14 18 Power 2 | . . . 2 3 3 Propulsion 1 | 1 1 2 2 2 1 Utility 2 | . . . . 4 5 Weapon 3 | . 1 2 1 5 6 Tool/Special . | . . . . . . Unused Backups 13 | . 2 . . . 11 Power 3 | . . . . . 3 Propulsion 1 | . . . . . 1 Utility 4 | . . . . . 4 Weapon 4 | . 2 . . . 2 Tool/Special 1 | . . . . . 1 Average Slot Usage (%) 95 | . 97 100 98 100 79 Engine 1 | . 6 . . . . Core 13 | . 6 14 14 14 15 Wheel 26 | . 27 28 28 28 17 Device 12 | . 12 14 13 14 7 Storage 10 | . 3 4 13 14 9 Processor 2 | . 12 9 . . . Protection 1 | . . . . . 7 Energy Gun 1 | . 8 . . . . Energy Cannon 11 | . 4 14 14 14 7 Ballistic Gun 3 | . 14 1 . . 5 Launcher 10 | . . 12 14 14 9 Peak Build Rating 27 | 7 11 11 12 16 27 Average Rating 12 | 4 8 10 11 13 20 On Entrance 9 | . 7 11 10 12 16 Naked Turns . | . . . . . . Heaviest Build 212 | 17 17 93 212 94 107 Greatest Support 32 | 32 20 20 20 20 30 Greatest Overweight (x) 30 | 2 . 4 10 4 30 Average Overweight (x) 2 | . . . 4 4 4 Largest Inventory Capacity 35 | 8 8 25 35 25 25 Average Capacity 20 | 5 5 11 25 25 25 Most Carried 22 | 4 5 5 9 21 22 Average Carried 11 | 1 3 4 8 15 19 Final Capacity 25 | 8 5 25 25 25 25 Final Carried 21 | 4 5 4 9 21 14 Class Distribution -------------------- 47% | Scavenger-Mutant 41% | Mutant 9% | Scavenger-Tank Dominant Class ---------------- Scavenger-Mutant | -10/Materials Scavenger-Mutant | -10/Mines Scavenger-Mutant | -10/Exiles Mutant | -9/Mines Scavenger-Tank | -8/Materials Resources | -11 -10 -10 -10 -9 -8 ----------- Run | Yrd Mat Min Exi Min Mat Matter Collected 686 | 311 123 34 27 51 140 Remotely . | . . . . . . Salvage Created 1219 | 80 262 164 . 158 555 Parts 92 | 4 21 11 . 15 41 Haulers Intercepted 2 | . 1 . . . 1 Recyclers Shooed 1 | . . . . . 1 Parts Field Recycled . | . . . . . . Retrieved Matter . | . . . . . . Parts Self-Destructed . | . . . . . . Prevented . | . . . . . . Kills | -11 -10 -10 -10 -9 -8 ------- Run | Yrd Mat Min Exi Min Mat Combat Hostiles Destroyed 34 | . 6 5 . 4 19 Guns 9 | . 6 . . . 3 Cannons 7 | . . 2 . 1 4 AOE 18 | . . 3 . 3 12 Classes Destroyed 9 | 2 4 1 . 1 1 Worker 3 | 1 1 1 . . . Builder 5 | . . . . . 5 Tunneler 1 | . . 1 . . . Hauler 2 | . 1 . . . 1 Recycler 1 | 1 . . . . . Watcher 3 | . 2 . . . 1 Swarmer 14 | . 3 3 . . 8 Grunt 19 | . 3 2 . 3 11 Sentry 1 | . . . . 1 . Best Kill Streak 7 | 1 3 5 . 3 7 Combat Bots Only 7 | . 3 3 . 3 7 Max Kills in Single Turn 5 | 1 1 5 . 3 3 Gunslinging . | . . . . . . Exploded 3 | . . 2 . 3 3 Melee . | . . . . . . Uniques/NPCs Destroyed . | . . . . . . Combat | -11 -10 -10 -10 -9 -8 -------- Run | Yrd Mat Min Exi Min Mat Hostile Shots Fired 168 | . 38 8 . 4 118 Missed 43 | . 13 3 . 1 26 Hits 125 | . 25 5 . 3 92 Projectile 125 | . 25 5 . 3 92 Critical Strikes 4 | . 1 . . . 3 Damage Taken 2218 | . 169 64 . 39 1946 Core 608 | . 44 7 . . 557 Absorbed by Shields . | . . . . . . Ignored by Resistances 407 | . 58 19 . 7 323 Core Remaining (%) 89 | 100 . . . 79 . Volleys Fired 74 | 5 29 4 . 2 34 Largest 3 | 2 2 2 . 2 3 Hottest 114 | 60 88 98 . 98 114 Shots Fired 140 | 10 44 8 . 3 75 Gun 74 | 10 40 1 . . 23 Cannon 39 | . 4 4 . 2 29 Launcher 27 | . . 3 . 1 23 Special . | . . . . . . Kinetic 58 | 5 29 1 . . 23 Thermal 55 | 5 15 4 . 2 29 Explosive 27 | . . 3 . 1 23 Electromagnetic . | . . . . . . Robot Hit Streak 10 | 5 5 6 . 2 10 Robot Miss Streak 2 | 1 2 1 . 1 2 Penetration Max . | . . . . . . Secondary Targets 1 | . 1 . . . . Max Gunslinging Chain 1 | . 1 . . . . Shots Hit Robots 89 | 7 30 2 . 2 48 Core Hits 78 | 3 17 7 . 4 47 Critical Kills . | . . . . . . Critical Parts Destroyed . | . . . . . . Critical Strikes . | . . . . . . Melee Attacks . | . . . . . . Impact . | . . . . . . Slashing . | . . . . . . Piercing . | . . . . . . Sneak Attacks . | . . . . . . Combat Hostiles . | . . . . . . Follow-up Attacks . | . . . . . . Damage Inflicted 3079 | 63 320 229 . 154 2313 Guns 514 | 60 240 . . . 214 Cannons 603 | . 80 40 . 40 443 Explosions 1869 | . . 179 . 92 1598 Melee . | . . . . . . Ramming 93 | 3 . 10 . 22 58 Kinetic 388 | 27 147 . . . 214 Thermal 780 | 33 173 91 . 40 443 Explosive 1818 | . . 128 . 92 1598 Electromagnetic . | . . . . . . Impact . | . . . . . . Slashing . | . . . . . . Piercing . | . . . . . . Highest Corruption 5 | . . . . . 5 Average Corruption 2 | . . . . . 2 Corruption Purged . | . . . . . . Corruption Blocked . | . . . . . . Effects 2 | . . . . . 2 Message Errors 1 | . . . . . 1 Parts Rejected 1 | . . . . . 1 Overload Shots . | . . . . . . Overflow Damage 116 | . . . . . 116 Projectiles . | . . . . . . Explosions 108 | . . . . . 108 Melee 8 | . . . . . 8 Knockbacks 2 | . . . . 1 1 Impact 2 | . . . . 1 1 Kinetic . | . . . . . . Secondary . | . . . . . . Self-Inflicted Damage 249 | . . 20 . 11 218 Shots 10 | . . 1 . . 9 Rammed 10 | . . 4 . 3 3 Targets Rammed 11 | 1 . 4 . 3 3 Kicked 1 | 1 . . . . . Crushed . | . . . . . . Highest Temperature 164 | 20 64 32 . . 164 Average Temperature 29 | 15 21 15 . . 37 Received Heat Transfer 738 | . 78 27 . 21 612 Siege Activations . | . . . . . . Martial Activations . | . . . . . . Shielding Activations . | . . . . . . Robots Disrupted . | . . . . . . Combat Hostiles . | . . . . . . Robots Corrupted . | . . . . . . Combat Hostiles . | . . . . . . Parts Fried . | . . . . . . Impact Corruptions 1 | . . . . . 1 Robots Melted . | . . . . . . Combat Hostiles . | . . . . . . Parts Melted 1 | . . 1 . . . Heat Transferred 1399 | 75 373 174 . 74 703 Parts Sabotaged . | . . . . . . Parts Stolen . | . . . . . . Parts Stripped . | . . . . . . Power Chain Reactions . | . . . . . . Alert | -11 -10 -10 -10 -9 -8 ------- Run | Yrd Mat Min Exi Min Mat Maximum Alert Level 2 | . . 1 . . 2 Low Security (%) 89 | 100 100 98 . 100 56 Level 1 10 | . . 1 . . 43 Level 2 . | . . . . . . Level 3 . | . . . . . . Level 4 . | . . . . . . Level 5 . | . . . . . . High Security . | . . . . . . Max Security . | . . . . . . Peak Influence 404 | 5 89 209 . 78 404 Initial 18 | . 2 . . . 18 Average 57 | . 22 104 . 3 186 Influence Increases 1266 | 10 181 249 . 118 708 Destroy 0b10 Robot/C 700 | . 120 100 . 100 380 Destroy 0b10 Robot/NC 75 | 10 20 10 . . 35 Destroy Leader 130 | . 26 20 . 10 74 Successful Hack 11 | . 3 . . . 8 Disable Machine 135 | . 9 90 . . 36 Destroy Structure 200 | . 3 29 . 8 160 Lose Combat Pursuer 15 | . . . . . 15 Influence Decreases 966 | 5 186 90 159 60 466 Entered New Map 202 | . 3 . 159 . 40 Time Decay 594 | 5 173 90 . 60 266 Lost Part 170 | . 10 . . . 160 Squads Dispatched 6 | . 1 . . . 5 Investigation 3 | . 1 . . . 2 Extermination . | . . . . . . Reinforcement 3 | . . . . . 3 Assault . | . . . . . . Garrison . | . . . . . . Intercept . | . . . . . . Searches Triggered . | . . . . . . Construction Impeded 2 | . . . . . 2 Haulers Reinforced . | . . . . . . Active Scanning Responses . | . . . . . . Cargo Convoy Interrupts . | . . . . . . Stealth | -11 -10 -10 -10 -9 -8 --------- Run | Yrd Mat Min Exi Min Mat Distress Signals 3 | . 1 . . . 2 Communications Jammed . | . . . . . . Distress Signals . | . . . . . . Times Spotted 45 | . 10 5 . 5 25 Peak Tracking Total 4 | . 3 3 . 3 4 Tactical Retreats 1 | . . . . . 1 Traps | -11 -10 -10 -10 -9 -8 ------- Run | Yrd Mat Min Exi Min Mat Traps Triggered 2 | . 2 . . . . Indirectly . | . . . . . . Trap Hack Attempts . | . . . . . . Triggered . | . . . . . . Disarmed . | . . . . . . Reprogrammed . | . . . . . . Reused . | . . . . . . Traps Extracted . | . . . . . . Installed . | . . . . . . Triggered . | . . . . . . Machines | -11 -10 -10 -10 -9 -8 ---------- Run | Yrd Mat Min Exi Min Mat Machines Disabled 16 | . 1 10 . 1 4 Max in Single Turn 10 | . 1 10 . . 1 Machines Repaired . | . . . . . . Machines Dismantled . | . . . . . . Machines Sabotaged . | . . . . . . Overloaded Fab Kills . | . . . . . . Hacking | -11 -10 -10 -10 -9 -8 --------- Run | Yrd Mat Min Exi Min Mat Machines Accessed 8 | . 2 . 4 . 2 Terminals 2 | . 1 . . . 1 Fabricators . | . . . . . . Repair Stations . | . . . . . . Recycling Units 2 | . 1 . . . 1 Scanalyzers . | . . . . . . Garrison Access . | . . . . . . Total Hacks 67 | . 10 . 49 . 8 Successful 62 | . 10 . 49 . 3 Failed 5 | . . . . . 5 Catastrophic . | . . . . . . Database Lockouts . | . . . . . . Manual 1 | . . . . . 1 Terminals 7 | . 3 . . . 4 Fabricators . | . . . . . . Repair Stations . | . . . . . . Recycling Units 11 | . 7 . . . 4 Scanalyzers . | . . . . . . Garrison Access . | . . . . . . Terminal Hacks 53 | . 3 . 49 . 1 Record 51 | . 1 . 49 . 1 Locate Traps 1 | . 1 . . . . Dispatch Records 1 | . 1 . . . . Fabricator Hacks . | . . . . . . Repair Station Hacks . | . . . . . . Recycling Unit Hacks 9 | . 7 . . . 2 Recycle Component 5 | . 4 . . . 1 Process 1 | . . . . . 1 Report Inventory 2 | . 2 . . . . Retrieve Components 1 | . 1 . . . . Scanalyzer . | . . . . . . Garrison Access Hacks . | . . . . . . Unauthorized Hacks . | . . . . . . Terminals . | . . . . . . Fabricators . | . . . . . . Repair Stations . | . . . . . . Recycling Units . | . . . . . . Scanalyzers . | . . . . . . Garrison Access . | . . . . . . Data Cores Recovered . | . . . . . . Used . | . . . . . . Hacking Detections 3 | . 1 . . . 2 Full Trace Events 3 | . 1 . . . 2 Feedback Events . | . . . . . . Feedback Blocked . | . . . . . . Robot Schematics Acquired . | . . . . . . Robots Built . | . . . . . . Authchips . | . . . . . . Time . | . . . . . . Total Robot Build Rating . | . . . . . . Part Schematics Acquired . | . . . . . . Parts Built . | . . . . . . Authchips . | . . . . . . Time . | . . . . . . Total Part Build Rating . | . . . . . . Parts Repaired . | . . . . . . Time . | . . . . . . Parts Recycled 5 | . 4 . . . 1 Recycled Matter 42 | . . . . . 42 Retrieved Matter . | . . . . . . Retrieved Components 4 | . 4 . . . . Parts Scanalyzed . | . . . . . . Part Schematics Acquired . | . . . . . . Parts Damaged . | . . . . . . Bothacking | -11 -10 -10 -10 -9 -8 ------------ Run | Yrd Mat Min Exi Min Mat Used RIF Installer . | . . . . . . Robots Hacked . | . . . . . . Non-combat . | . . . . . . Combat . | . . . . . . Robot Hacks Applied . | . . . . . . Relay Couplers Released . | . . . . . . Fabnet Peak Effective % . | . . . . . . Robots Rewired . | . . . . . . Allies Hacked . | . . . . . . Hacks Repelled . | . . . . . . Allies | -11 -10 -10 -10 -9 -8 -------- Run | Yrd Mat Min Exi Min Mat Total Allies 1 | . . . . 1 . Largest Group 1 | . . . . 1 . Highest-Rated Group 31 | . . . . 31 . Highest-Rated Ally 31 | . . . . 31 . Total Orders . | . . . . . . Ally Attacks 2 | . . . . 2 . Total Damage 22 | . . . . 22 . Kills 1 | . . . . 1 . Allies Corrupted . | . . . . . . Allies Melted . | . . . . . . Intel | -11 -10 -10 -10 -9 -8 ------- Run | Yrd Mat Min Exi Min Mat Active Infowar (turns) 558 | . 424 134 . . . Optics 558 | . 424 134 . . . Robot Analysis Total . | . . . . . . Derelict Logs Recovered . | . . . . . . Drone Launches . | . . . . . . Drone Recoveries . | . . . . . . Exploration | -11 -10 -10 -10 -9 -8 ------------- Run | Yrd Mat Min Exi Min Mat Turns Passed 3467 | 214 486 196 942 1046 583 Spaces Moved 2526 | 180 497 188 662 731 268 Core 14 | 9 . . . . 5 Treads . | . . . . . . Legs 50 | 50 . . . . . Wheels 2461 | 121 497 188 662 731 262 Hover 1 | . . . . . 1 Flight . | . . . . . . Fastest Speed 50 | 50 80 80 80 140 125 Average Speed 124 | 96 80 93 140 140 169 Slowest Speed 1550 | 150 80 140 230 140 1550 Overloaded Moves . | . . . . . . Propulsion Burnouts . | . . . . . . Robots Hopped . | . . . . . . Potential Cave-ins . | . . . . . . Cave-ins Triggered 3 | . . . . . 3 Exploration Rate (%) 50 | 5 65 39 92 83 20 Regions Visited 5 Branch Regions 3 Pre-discovered Areas 1 | . . . 1 . . Known Exits Taken . | . . . . . . Unknown Exits Taken 5 | 1 1 1 1 1 . Scrap Searched 3 | . . 1 . 2 . Spaces Dug . | . . . . . . Terrain Destroyed 210 | . 3 35 . 8 164 Melee . | . . . . . . Projectile 3 | . . . . . 3 AOE 207 | . 3 35 . 8 161 Terrain Rammed . | . . . . . . Walls Destroyed . | . . . . . . Machines Disabled . | . . . . . . Actions | -11 -10 -10 -10 -9 -8 --------- Run | Yrd Mat Min Exi Min Mat Total 2704 | 210 544 201 674 748 327 Wait 2 | . . 2 . . . Move 2521 | 179 496 187 661 730 268 Hop . | . . . . . . Pick Up 31 | 6 4 . 7 10 4 Fast Attach 20 | 9 6 1 3 . 1 Attach 17 | 2 1 1 . . 13 Detach 7 | 4 1 1 . . 1 Swap 9 | . 3 . . 3 3 Drop 12 | 4 4 1 3 . . Fire 74 | 5 29 4 . 2 34 Melee . | . . . . . . Ram 10 | . . 4 . 3 3 Kick 1 | 1 . . . . . Crush . | . . . . . . Escape Stasis . | . . . . . . Rewire . | . . . . . . Trap . | . . . . . . Miscellaneous . | . . . . . . Route ------- -11/Scrapyard -10/Materials (discovered 4 exits: [*Mat x2] / [*Min] / [*Sub]) -10/Mines (discovered 2 exits: [*Mat] / *Exi) -10/Exiles -9/Mines -8/Materials History --------- Turn | Location | Event 10 | -11/Scrapyard | Discovered new exit (range 15) 215 | -11/Scrapyard | Entered Materials 317 | -10/Materials | Build established: Mutant 473 | -10/Materials | Discovered new exit (range 4) 572 | -10/Materials | Discovered new exit (range 9) 572 | -10/Materials | Discovered new exit (range 10) 669 | -10/Materials | Discovered new exit (range 13) 701 | -10/Materials | Entered Mines 706 | -10/Mines | Discovered new exit (range 11) 707 | -10/Mines | Build established: Scavenger-Mutant 865 | -10/Mines | Deemed a non-threat by the Exiles lab entrance 866 | -10/Mines | Discovered new exit (range 5) 897 | -10/Mines | Entered Exiles 963 | -10/Exiles | Met 8R-AWN 1005 | -10/Exiles | Met EX-HEX 1179 | -10/Exiles | Met EX-DEC 1210 | -10/Exiles | Visited The Gauntlet 1487 | -10/Exiles | Met EX-BIN 1699 | -10/Exiles | Learned location of Zion (-7) 1823 | -10/Exiles | Discovered new exit (range 14) 1839 | -10/Exiles | Entered Mines 1946 | -9/Mines | Discovered new exit (range 5) 2240 | -9/Mines | Received a Mining Laser from a helpful Derelict 2307 | -9/Mines | Build established: Mutant 2885 | -9/Mines | Entered Materials 2885 | -8/Materials | Evolved 4 slots: Power x1, Propulsion x1, Utility x1, Weapon x1 3034 | -8/Materials | Destroyed 7 combat bots 3187 | -8/Materials | Build established: Scavenger-Tank 3217 | -8/Materials | Crushed by falling debris 3395 | -8/Materials | Crushed by falling debris 3395 | -8/Materials | Core integrity fell below 50% 3402 | -8/Materials | Crushed by falling debris 3402 | -8/Materials | Core integrity fell below 20% 3451 | -8/Materials | Lost 12 parts (4p2n1u5w) 3468 | -8/Materials | Destroyed by G-47 Trooper with Particle Gun Last Messages --------------- Hvy. Assault Rifle destroyed. Destroyed Hvy. Assault Rifle. [Achievement: Remodeling] K-01 Serf collects debris. G-47 Trooper destroyed. ALERT: Construction progress impeded, dispatching reinforcements to local area. K-01 Serf collects debris. The unstable cave ceiling collapses. K-01 Serf collects debris. U-05 Engineer builds a Wall. The unstable cave ceiling collapses. U-05 Engineer builds a Wall. Acquired 3 matter. The unstable cave ceiling collapses. K-01 Serf collects debris. U-05 Engineer builds a Wall. K-01 Serf collects debris. The unstable cave ceiling collapses. K-01 Serf collects debris. Map ----- +----------------------------------------------------+ | ???????????????????????# #?????????? | | ???????????????????????# """ #?######??? | | ???????????????????????# """ = # #??? | | ????????????############ """ # # #??? | | ????????????# ## = # #??? | | ????????????# ### #??? | | ????????????# # = #??? | | ????????????# + = = #??? | | ????????????# """"" # ! ! ######??? | | ????????????# """"" ## ######| ####????? | | ????????????# """"" ## ## #????? | | ????????????# # #*# #????? | | ????????????##### ## ### #[# " "" #????? | | ???????????#### # ![%[+ """"" #????? | | ???????????# !% ###+#### #????? | | ???????????# !# ! # #????? | | ??????????? / " # #????? | | ??????????# # ## " " # #????? | | ??????????? # # """ ###########????? | | ??????????# # ## #??????????????? | | ?????????## # # ## ## #???######?????? | | ?????????? * # ########### [[ #?????? | | ??????????"" [ ## # # # [[ #?????? | | ??????????""" ## # [[ #?????? | | ?????????? " ## k # #?????? | | ??????????? ## @ # #?????? | | ??????????? ]## = # #?????? | | ????????????????###* ## # ####+###?????? | | ????????????? ## g ???????????? | | ???????????? ### ## # ###??????????? | | ???????????? ????####?#########????????????? | | ???????????????????????????????????????????? | | ???????????????????????????????????????????? | | ???????????????????????????????????????????? | | ???????????????????????????????????????????? | | ???????????????????????????????????????????? | | ???????????????????????????????????????????? | | ???????????????????????????????????????????? | | ???????????????????????????????????????????? | | ???????????????????????????????????????????? | | ???????????????????????????????????????????? | | ???????????????????????????????????????????? | | ???????????????????????????????????????????? | | ???????????????????????????????????????????? | | ???????????????????????????????????????????? | | ???????????????????????????????????????????? | | ???????????????????????????????????????????? | | ???????????????????????????????????????????? | | ???????????????????????????????????????????? | | ???????????????????????????????????????????? | +----------------------------------------------------+ Best States ------------- Heat Dissipation 53 Energy Generation 23 Energy Capacity 250 Matter Stores 300 Matter Capacity 300 Sight Range 18 Terrain Scan Density 10 Armor Coverage 150 Resistance: KI 20 Resistance: TH 20 Resistance: EX 20 Resistance: EM 20 Resistance: I 20 Resistance: S 20 Resistance: P 20 Evasion (%) 55 Offensive Hacking 10 Item Schematics ----------------- None Robot Schematics ------------------ None Fabricated ------------ Nothing Repaired ---------- Nothing Alien Tech Used ----------------- None Achievements -------------- It Was An Accident, I Swear Librarian Remodeling Tank Tourist Challenges ------------ None Game ------ Seed WeaponZioniteKinecellerator Manual? 0 Play Time 00:39:43 Cumulative 3.6 hours Start 2025.07.10 @ 00:40:50 End 2025.07.13 @ 20:10:05 Sessions 4 Manual Loads 0 Difficulty Adventurer Special Mode None Game No. 4 Rogue 0 Adventurer 4 Explorer 0 Win Type - Total 0 Types 0/0/0/0/0/0/0/0/0/0 Lore% 5 Gallery% 5 Achievement% 7 Wizard Run 0 Options --------- Layout 0 ASCII 0 Keyboard 0 Movement Arrows Keybinds 0 Fullscreen 1 Font 18/SmallcapsGlow Map View 76x50 Zoom Use 1% Tactical HUD 0 Map Filters NONE Filters NONE Steam 1 RUN: 0d87c819-8357-40db-b76c-05ca547076c5